fUST/lending_fUST_20251230
["ID","MTS","AMOUNT","RATE_DAILY","PERIOD"]
[400054282,1767054642262,-500.0,0.00021917,2]
[400054283,1767054642272,-234.48823972,0.00021917,2]
[400054284,1767054642281,-494.38316648,0.00021917,2]
[400054285,1767054642290,-1000.0,0.00021917,2]
[400054286,1767054642299,-426.86495862,0.00021917,2]
[400054287,1767054642309,-500.0,0.00021917,2]
[400054288,1767054642318,-161.69636147,0.00021917,2]
[400054289,1767054642327,-500.0,0.00021917,2]
[400054290,1767054642336,-203.24190717,0.00021917,2]
[400054291,1767054642345,-262.92534721,0.00021917,2]
[400054292,1767054642354,-269.57121711,0.00021917,2]
[400054293,1767054642363,-195.74438465,0.00021917,2]
[400054294,1767054642372,-309.43647054,0.00021917,2]
[400054295,1767054642382,-500.99596563,0.00021917,2]
[400054296,1767054642391,-251.37829777,0.00021917,2]
[400054297,1767054642400,-500.0,0.00021917,2]
[400054298,1767054642410,-491.37863043,0.00021917,2]
[400054299,1767054642420,-347.21846073,0.00021917,2]
[400054300,1767054642429,-306.74492455,0.00021917,2]
[400054301,1767054642438,-319.68433654,0.00021917,2]
[400054302,1767054642447,-406.89272503,0.00021917,2]
[400054303,1767054642458,-500.0,0.00021917,2]
[400054304,1767054642467,-186.64044942,0.00021917,2]
[400054305,1767054642476,-465.19135142,0.00021917,2]
[400054307,1767054642486,-434.87120027,0.00021917,2]
[400054309,1767054642495,-500.0,0.00021917,2]
[400054310,1767054642504,-540.44375359,0.00021917,2]
[400054311,1767054642514,-381.44270376,0.00021917,2]
[400054312,1767054642523,-500.0,0.00021917,2]
[400054313,1767054642532,-164.72537935,0.00021917,2]
[400054314,1767054642542,-500.0,0.00021917,2]
[400054315,1767054642551,-202.31376663,0.00021917,2]
[400054316,1767054642560,-367.57,0.00021917,2]
[400054317,1767054642569,-363.63724967,0.00021917,2]
[400054318,1767054642579,-610.95408846,0.00021917,2]
[400054319,1767054642588,-499.59276763,0.00021917,2]
[400054320,1767054642598,-186.37266074,0.00021917,2]
[400054321,1767054642607,-230.94001368,0.00021917,2]
[400054322,1767054642616,-500.0,0.00021917,2]
[400054323,1767054642625,-500.0,0.00021917,2]
[400054324,1767054642635,-206.2591174,0.00021917,2]
[400054325,1767054642644,-374.95658771,0.00021917,2]
[400054326,1767054642653,-500.0,0.00021917,2]
[400054327,1767054642663,-351.67604569,0.00021917,2]
[400054328,1767054642672,-349.44841034,0.00021917,2]
[400054329,1767054642682,-443.82116466,0.00021917,2]
[400054330,1767054642691,-327.42795179,0.00021917,2]
[400054331,1767054642804,-500.0,0.00021917,2]
[400054332,1767054642814,-217.86653738,0.00021917,2]
[400054333,1767054642823,-500.0,0.00021917,2]
[400054334,1767054642832,-419.21827466,0.00021917,2]
[400054335,1767054642841,-213.06669978,0.00021917,2]
[400054336,1767054642851,-268.02262656,0.00021917,2]
[400054337,1767054642860,-420.40948282,0.00021917,2]
[400054338,1767054642869,-502.9,0.00021917,2]
[400054339,1767054642879,-266.12580852,0.00021917,2]
[400054340,1767054642892,-368.0625331,0.00021917,2]
[400054341,1767054642901,-500.0,0.00021917,2]
[400054342,1767054642911,-561.91723085,0.00021917,2]
[400054343,1767054642921,-256.964808,0.00021917,2]
[400054344,1767054642931,-573.02929433,0.00021917,2]
[400054345,1767054642940,-445.80989693,0.00021917,2]
[400054346,1767054642950,-497.71228405,0.00021917,2]
[400054347,1767054642963,-403.68063183,0.00021917,2]
[400054348,1767054642973,-296.36211743,0.00021917,2]
[400054349,1767054642982,-470.89585768,0.00021917,2]
[400054350,1767054642992,-500.0,0.00021917,2]
[400054351,1767054643002,-500.0,0.00021917,2]
[400054352,1767054643011,-538.10185872,0.00021917,2]
[400054353,1767054643021,-7629.338496,0.00021917,2]
[400054354,1767054643031,-249.9681414,0.00021917,2]
[400054355,1767054643040,-276.4405767,0.00021917,2]
[400054356,1767054643050,-189.07333693,0.00021917,2]
[400054357,1767054643059,-314.14014211,0.00021917,2]
[400054358,1767054643068,-539.0850877,0.00021917,2]
[400054359,1767054643078,-500.0,0.00021917,2]
[400054360,1767054643088,-460.4,0.00021917,2]
[400054361,1767054643098,-501.89029961,0.00021917,2]
[400054362,1767054643108,-474.25212021,0.00021917,2]
[400054363,1767054643118,-454.77996909,0.00021917,2]
[400054364,1767054643128,-420.23607407,0.00021917,2]
[400054365,1767054643138,-281.13326683,0.00021917,2]
[400054366,1767054643148,-506.42329108,0.00021917,2]
[400054367,1767054643158,-363.91423782,0.00021917,2]
[400054368,1767054643167,-500.0,0.00021917,2]
[400054369,1767054643178,-336.11535103,0.00021917,2]
[400054370,1767054643188,-441.60555769,0.00021917,2]
[400054371,1767054643198,-419.94997901,0.00021917,2]
[400054372,1767054643213,-449.40365979,0.00021917,2]
[400054373,1767054643226,-208.37773591,0.00021917,2]
[400054374,1767054643237,-181.669416,0.00021917,2]
[400054375,1767054643247,-500.0,0.00021917,2]
[400054376,1767054643257,-442.47098096,0.00021917,2]
[400054377,1767054643267,-500.0,0.00021917,2]
[400054378,1767054643277,-500.0,0.00021917,2]
[400054379,1767054643287,-489.5909872,0.00021917,2]
[400054380,1767054643297,-500.0,0.00021917,2]
[400054381,1767054643307,-322.21446513,0.00021917,2]
[400054382,1767054643317,-221.67463703,0.00021917,2]
[400054383,1767054643330,-634.2289801,0.00021917,2]
[400054384,1767054643339,-471.79543403,0.00021917,2]
[400054385,1767054643349,-500.0,0.00021917,2]
[400054386,1767054643358,-365.10181785,0.00021917,2]
[400054387,1767054643369,-320.64526273,0.00021917,2]
[400054388,1767054643379,-477.6934302,0.00021917,2]
[400054389,1767054643388,-229.88879352,0.00021917,2]
[400054390,1767054643398,-215.83814389,0.00021917,2]
[400054391,1767054643408,-487.77119636,0.00021917,2]
[400054392,1767054643418,-312.19237023,0.00021917,2]
[400054393,1767054643427,-464.38811206,0.00021917,2]
[400054394,1767054643437,-240.99321294,0.00021917,2]
[400054395,1767054643447,-485.56870717,0.00021917,2]
[400054396,1767054643461,-333.99912007,0.00021917,2]
[400054397,1767054643471,-293.1369972,0.00021917,2]
[400054398,1767054643481,-273.35091311,0.00021917,2]
[400054399,1767054643491,-327.11223151,0.00021917,2]
[400054400,1767054643502,-319.68950835,0.00021917,2]
[400054401,1767054643512,-424.72070765,0.00021917,2]
[400054402,1767054643521,-186.48937392,0.00021917,2]
[400054403,1767054643531,-596.55559848,0.00021917,2]
[400054404,1767054643542,-376.73083576,0.00021917,2]
[400054405,1767054643552,-500.0,0.00021917,2]
[400054406,1767054643561,-187.90611098,0.00021917,2]
[400054407,1767054643571,-203.35647701,0.00021917,2]
[400054408,1767054643581,-449.82536442,0.00021917,2]
[400054409,1767054643591,-461.88261165,0.00021917,2]
[400054410,1767054643601,-290.15325278,0.00021917,2]
[400054411,1767054643611,-277.6938934,0.00021917,2]
[400054412,1767054643621,-1000.0,0.00021917,2]
[400054413,1767054643631,-500.0,0.00021917,2]
[400054414,1767054643642,-465.70568753,0.00021917,2]
[400054415,1767054643651,-327.50837283,0.00021917,2]
[400054416,1767054643661,-486.28780482,0.00021917,2]
[400054417,1767054643671,-205.57380574,0.00021917,2]
[400054418,1767054643681,-323.76444914,0.00021917,2]
[400054419,1767054643691,-214.56132807,0.00021917,2]
[400054420,1767054643700,-500.0,0.00021917,2]
[400054421,1767054643712,-511.89011642,0.00021917,2]
[400054422,1767054643721,-496.84809073,0.00021917,2]
[400054423,1767054643731,-278.49487928,0.00021917,2]
[400054424,1767054643742,-487.86563401,0.00021917,2]
[400054425,1767054643752,-409.43073117,0.00021917,2]
[400054426,1767054643762,-372.81822915,0.00021917,2]
[400054427,1767054643771,-500.0,0.00021917,2]
[400054428,1767054643782,-252.80567883,0.00021917,2]
[400054429,1767054643792,-275.06643056,0.00021917,2]
[400054430,1767054643802,-327.08881678,0.00021917,2]
[400054431,1767054643812,-231.26445658,0.00021917,2]
[400054432,1767054643821,-477.19724969,0.00021917,2]
[400054433,1767054643831,-487.22662135,0.00021917,2]
[400054434,1767054643840,-161.30574498,0.00021917,2]
[400054435,1767054643851,-370.21932107,0.00021917,2]
[400054436,1767054643860,-228.49898026,0.00021917,2]
[400054437,1767054643869,-410.54004209,0.00021917,2]
[400054438,1767054643878,-224.13773528,0.00021917,2]
[400054439,1767054643891,-446.11338356,0.00021917,2]
[400054440,1767054643900,-488.04044067,0.00021917,2]
[400054441,1767054643910,-150.04324671,0.00021917,2]
[400054442,1767054643919,-459.55961902,0.00021917,2]
[400054443,1767054643928,-461.85768299,0.00021917,2]
[400054444,1767054643938,-461.30514034,0.00021917,2]
[400054445,1767054643947,-291.75959071,0.00021917,2]
[400054446,1767054643959,-229.00132958,0.00021917,2]
[400054447,1767054643969,-500.0,0.00021917,2]
[400054448,1767054643978,-181.60437423,0.00021917,2]
[400054449,1767054643988,-229.40932393,0.00021917,2]
[400054450,1767054643997,-299.02872134,0.00021917,2]
[400054451,1767054644007,-346.19948498,0.00021917,2]
[400054452,1767054644021,-495.94160882,0.00021917,2]
[400054453,1767054644030,-150.4825193,0.00021917,2]
[400054454,1767054644040,-154.63759183,0.00021917,2]
[400054455,1767054644050,-462.54292197,0.00021917,2]
[400054456,1767054644059,-167.89015727,0.00021917,2]
[400054457,1767054644069,-426.82751742,0.00021917,2]
[400054458,1767054644078,-241.60322333,0.00021917,2]
[400054459,1767054644088,-500.0,0.00021917,2]
[400054460,1767054644098,-4821.6,0.00021917,2]
[400054461,1767054644107,-430.81365295,0.00021917,2]
[400054462,1767054644117,-232.05339944,0.00021917,2]
[400054463,1767054644127,-500.0,0.00021917,2]
[400054464,1767054644136,-506.29868568,0.00021917,2]
[400054465,1767054644146,-288.23939754,0.00021917,2]
[400054466,1767054644156,-248.92613817,0.00021917,2]
[400054467,1767054644166,-230.99483231,0.00021917,2]
[400054468,1767054644176,-486.66236312,0.00021917,2]
[400054469,1767054644186,-500.0,0.00021917,2]
[400054470,1767054644196,-188.57203443,0.00021917,2]
[400054471,1767054644208,-598.60330821,0.00021917,2]
[400054472,1767054644218,-500.0,0.00021917,2]
[400054473,1767054644229,-253.63102759,0.00021917,2]
[400054474,1767054644238,-516.4273939,0.00021917,2]
[400054475,1767054644248,-500.0,0.00021917,2]
[400054476,1767054644257,-349.87778429,0.00021917,2]
[400054477,1767054644266,-342.84833664,0.00021917,2]
[400054478,1767054644276,-512.09352173,0.00021917,2]
[400054479,1767054644286,-170.04860205,0.00021917,2]
[400054480,1767054644295,-496.33962389,0.00021917,2]
[400054481,1767054644304,-184.33391286,0.00021917,2]
[400054482,1767054644314,-488.28774234,0.00021917,2]
[400054483,1767054644323,-395.71561786,0.00021917,2]
[400054484,1767054644332,-273.51615063,0.00021917,2]
[400054485,1767054644341,-404.6474823,0.00021917,2]
[400054486,1767054644351,-178.50369212,0.00021917,2]
[400054487,1767054644360,-500.0,0.00021917,2]
[400054488,1767054644369,-370.63190419,0.00021917,2]
[400054489,1767054644378,-406.98709601,0.00021917,2]
[400054490,1767054644387,-262.71392186,0.00021917,2]
[400054491,1767054644396,-496.98851051,0.00021917,2]
[400054492,1767054644406,-500.0,0.00021917,2]
[400054493,1767054644415,-320.62728522,0.00021917,2]
[400054494,1767054644425,-199.91617465,0.00021917,2]
[400054495,1767054644434,-500.0,0.00021917,2]
[400054496,1767054644443,-255.36194022,0.00021917,2]
[400054497,1767054644452,-385.30648605,0.00021917,2]
[400054498,1767054644464,-273.4647335,0.00021917,2]
[400054499,1767054644473,-208.47163128,0.00021917,2]
[400054500,1767054644482,-397.08280438,0.00021917,2]
[400054501,1767054644491,-500.0,0.00021917,2]
[400054502,1767054644500,-226.63513394,0.00021917,2]
[400054503,1767054644510,-250.86157752,0.00021917,2]
[400054504,1767054644519,-538.10671884,0.00021917,2]
[400054505,1767054644529,-380.96173072,0.00021917,2]
[400054506,1767054644538,-500.0,0.00021917,2]
[400054507,1767054644547,-529.67556435,0.00021917,2]
[400054508,1767054644556,-500.0,0.00021917,2]
[400054509,1767054644565,-500.0,0.00021917,2]
[400054510,1767054644575,-463.44162143,0.00021917,2]
[400054511,1767054644584,-480.0,0.00021917,2]
[400054512,1767054644593,-208.13778615,0.00021917,2]
[400054513,1767054644601,-500.0,0.00021917,2]
[400054514,1767054644611,-479.8863713,0.00021917,2]
[400054515,1767054644620,-500.0,0.00021917,2]
[400054516,1767054644629,-267.7999855,0.00021917,2]
[400054517,1767054644639,-426.17029981,0.00021917,2]
[400054518,1767054644648,-500.0,0.00021917,2]
[400054519,1767054644657,-361.59023769,0.00021917,2]
[400054520,1767054644667,-500.0,0.00021917,2]
[400054521,1767054644676,-456.75047125,0.00021917,2]
[400054522,1767054644685,-500.0,0.00021917,2]
[400054523,1767054644695,-339.11993172,0.00021917,2]
[400054524,1767054644704,-500.0,0.00021917,2]
[400054525,1767054644714,-500.0,0.00021917,2]
[400054526,1767054644723,-248.87860646,0.00021917,2]
[400054527,1767054644732,-419.48502169,0.00021917,2]
[400054528,1767054644741,-500.0,0.00021917,2]
[400054529,1767054644751,-501.7554646,0.00021917,2]
[400054530,1767054644760,-251.01134055,0.00021917,2]
[400054531,1767054644770,-172.47455784,0.00021917,2]
[400054532,1767054644779,-262.88897779,0.00021917,2]
[400054533,1767054644788,-680.8,0.00021917,2]
[400054534,1767054644797,-500.0,0.00021917,2]
[400054535,1767054644806,-380.6213759,0.00021917,2]
[400054536,1767054644815,-501.1,0.00021917,2]
[400054537,1767054644824,-394.44798284,0.00021917,2]
[400054538,1767054644833,-621.07135702,0.00021917,2]
[400054539,1767054644842,-393.93519273,0.00021917,2]
[400054540,1767054644851,-878.29,0.00021917,2]
[400054541,1767054644861,-500.0,0.00021917,2]
[400054542,1767054644870,-173.42928672,0.00021917,2]
[400054543,1767054644882,-385.14357929,0.00021917,2]
[400054544,1767054644892,-174.43765319,0.00021917,2]
[400054545,1767054644902,-275.38899138,0.00021917,2]
[400054546,1767054644911,-441.85119835,0.00021917,2]
[400054547,1767054644922,-452.63889928,0.00021917,2]
[400054548,1767054644932,-219.25366099,0.00021917,2]
[400054549,1767054644942,-441.07486283,0.00021917,2]
[400054551,1767054644951,-243.7655413,0.00021917,2]
[400054553,1767054644964,-482.00582969,0.00021917,2]
[400054555,1767054644974,-576.74851698,0.00021917,2]
[400054557,1767054644983,-439.14977885,0.00021917,2]
[400054558,1767054644992,-500.0,0.00021917,2]
[400054559,1767054645001,-522.88825418,0.00021917,2]
[400054560,1767054645011,-583.56068195,0.00021917,2]
[400054561,1767054645020,-244.19042592,0.00021917,2]
[400054562,1767054645029,-299.9120085,0.00021917,2]
[400054563,1767054645040,-264.52877309,0.00021917,2]
[400054564,1767054645050,-416.22411128,0.00021917,2]
[400054565,1767054645059,-595.06230155,0.00021917,2]
[400054566,1767054645068,-478.48389396,0.00021917,2]
[400054567,1767054645077,-286.86271311,0.00021917,2]
[400054568,1767054645087,-228.09003205,0.00021917,2]
[400054569,1767054645096,-184.88251798,0.00021917,2]
[400054570,1767054645105,-463.66887211,0.00021917,2]
[400054571,1767054645115,-223.12119079,0.00021917,2]
[400054572,1767054645124,-464.19137506,0.00021917,2]
[400054573,1767054645134,-488.48967991,0.00021917,2]
[400054574,1767054645143,-345.23126733,0.00021917,2]
[400054575,1767054645153,-161.18946542,0.00021917,2]
[400054576,1767054645163,-500.0,0.00021917,2]
[400054577,1767054645172,-348.06819212,0.00021917,2]
[400054578,1767054645181,-994.31,0.00021917,2]
[400054579,1767054645190,-574.48534634,0.00021917,2]
[400054580,1767054645199,-500.0,0.00021917,2]
[400054581,1767054645210,-500.0,0.00021917,2]
[400054582,1767054645298,-500.0,0.00021917,2]
[400054583,1767054645316,-184.817009,0.00021917,2]
[400054584,1767054645326,-502.66559039,0.00021917,2]
[400054585,1767054645335,-231.78420349,0.00021917,2]
[400054586,1767054645345,-495.84474953,0.00021917,2]
[400054587,1767054645354,-268.64102064,0.00021917,2]
[400054588,1767054645364,-500.0,0.00021917,2]
[400054589,1767054645374,-200.01707268,0.00021917,2]
[400054590,1767054645384,-500.0,0.00021917,2]
[400054591,1767054645393,-241.032427,0.00021918,2]
[400054592,1767054645403,-165.82,0.00022,2]
[400054593,1767054645413,-1207.08,0.00022,7]
[400054594,1767054645422,-500.0,0.00022162,2]
[400054595,1767054645432,-255.49224073,0.0002219,2]
[400054596,1767054645442,-255.49224073,0.0002219,2]
[400054597,1767054645451,-500.0,0.00022191,2]
[400054598,1767054645461,-500.0,0.00022191,2]
[400054599,1767054645471,-1185.68095469,0.00022191,2]
[400054600,1767054645480,-500.0,0.00022191,2]
[400054601,1767054645490,-500.0,0.00022191,2]
[400054602,1767054645499,-893.04,0.00022191,2]
[400054603,1767054645508,-1000.0,0.00022191,2]
[400054604,1767054645517,-500.0,0.00022191,2]
[400054605,1767054645527,-500.0,0.00022191,2]
[400054606,1767054645536,-502.9,0.00022191,2]
[400054607,1767054645545,-427.64161233,0.00022191,2]
[400054608,1767054645555,-4821.6,0.00022191,2]
[400054609,1767054645564,-500.0,0.00022191,2]
[400054610,1767054645573,-500.0,0.00022191,2]
[400054611,1767054645582,-680.8,0.00022191,2]
[400054612,1767054645592,-501.1,0.00022191,2]
[400054613,1767054645601,-878.29,0.00022191,2]
[400054614,1767054645611,-500.0,0.00022191,2]
[400054615,1767054645620,-500.0,0.00022191,2]
[400054616,1767054645630,-994.31,0.00022191,2]
[400054617,1767054645639,-500.0,0.00022191,2]
[400054618,1767054645648,-500.0,0.00022191,2]
[400054619,1767054645658,-500.0,0.00022287,2]
[400054620,1767054645668,-500.0,0.00022412,2]
[400054621,1767054645678,-760.0,0.00022413,2]
[400054622,1767054645687,-500.0,0.00022465,2]
[400054623,1767054645697,-1185.68095469,0.00022465,2]
[400054624,1767054645708,-500.0,0.00022465,2]
[400054626,1767054645718,-500.0,0.00022465,2]
[400054628,1767054645728,-893.04,0.00022465,2]
[400054629,1767054645738,-1000.0,0.00022465,2]
[400054630,1767054645747,-500.0,0.00022465,2]
[400054631,1767054645756,-500.0,0.00022465,2]
[400054632,1767054645766,-502.9,0.00022465,2]
[400054633,1767054645777,-4821.6,0.00022465,2]
[400054634,1767054645787,-500.0,0.00022465,2]
[400054635,1767054645796,-500.0,0.00022465,2]
[400054636,1767054645806,-680.8,0.00022465,2]
[400054637,1767054645815,-501.1,0.00022465,2]
[400054638,1767054645825,-878.29,0.00022465,2]
[400054639,1767054645835,-500.0,0.00022465,2]
[400054640,1767054645844,-994.31,0.00022465,2]
[400054641,1767054645854,-500.0,0.00022465,2]
[400054642,1767054645864,-498.10670326,0.00022465,2]
[400054643,1767054645875,-500.0,0.00022475,2]
[400054644,1767054645884,-321.5,0.00022557,2]
[400054645,1767054645898,-500.0,0.00022603,2]
[400054646,1767054645908,-500.0,0.0002273,2]
[400054647,1767054645917,-500.0,0.00022739,2]
[400054648,1767054645927,-1185.68095469,0.00022739,2]
[400054649,1767054645936,-500.0,0.00022739,2]
[400054650,1767054645945,-500.0,0.00022739,2]
[400054651,1767054645956,-893.04,0.00022739,2]
[400054652,1767054645966,-568.41416315,0.00022739,2]
[400054653,1767054645976,-500.0,0.00022739,2]
[400054654,1767054645986,-500.0,0.00022739,2]
[400054655,1767054645995,-502.9,0.00022739,2]
[400054656,1767054646005,-4821.6,0.00022739,2]
[400054657,1767054646015,-500.0,0.00022739,2]
[400054658,1767054646024,-500.0,0.00022739,2]
[400054659,1767054646034,-680.8,0.00022739,2]
[400054660,1767054646043,-501.1,0.00022739,2]
[400054661,1767054646053,-878.29,0.00022739,2]
[400054662,1767054646063,-500.0,0.00022739,2]
[400054664,1767054646073,-994.31,0.00022739,2]
[400054665,1767054646082,-500.0,0.00022739,2]
[400054666,1767054646092,-500.0,0.00022748,2]
[400054667,1767054646102,-224508.62079546,0.00022811,2]
[400054668,1767054646111,-1616.0,0.00022902,2]
[400054669,1767054646120,-860.0,0.00022961,2]
[400054670,1767054646130,-500.0,0.00023013,2]
[400054671,1767054646140,-1185.68095469,0.00023013,2]
[400054672,1767054646150,-500.0,0.00023013,2]
[400054673,1767054646159,-500.0,0.00023013,2]
[400054674,1767054646168,-893.04,0.00023013,2]
[400054675,1767054646178,-500.0,0.00023013,2]
[400054676,1767054646187,-500.0,0.00023013,2]
[400054677,1767054646197,-502.9,0.00023013,2]
[400054678,1767054646206,-4821.6,0.00023013,2]
[400054679,1767054646218,-500.0,0.00023013,2]
[400054680,1767054646229,-680.8,0.00023013,2]
[400054681,1767054646239,-501.1,0.00023013,2]
[400054682,1767054646249,-878.29,0.00023013,2]
[400054683,1767054646258,-500.0,0.00023013,2]
[400054684,1767054646268,-994.31,0.00023013,2]
[400054685,1767054646278,-500.0,0.00023013,2]
[400054687,1767054646289,-500.0,0.00023094,2]
[400054688,1767054646298,-285.0,0.00023227,2]
[400054689,1767054646308,-500.0,0.00023287,2]
[400054690,1767054646318,-1185.68095469,0.00023287,2]
[400054691,1767054646327,-587.13463047,0.00023287,2]
[400054692,1767054646337,-500.0,0.00023287,2]
[400054693,1767054646346,-893.04,0.00023287,2]
[400054694,1767054646356,-500.0,0.00023287,2]
[400054695,1767054646366,-500.0,0.00023287,2]
[400054696,1767054646376,-502.9,0.00023287,2]
[400054697,1767054646385,-4821.6,0.00023287,2]
[400054698,1767054646396,-680.8,0.00023287,2]
[400054699,1767054646405,-501.1,0.00023287,2]
[400054700,1767054646415,-878.29,0.00023287,2]
[400054701,1767054646425,-500.0,0.00023287,2]
[400054702,1767054646434,-994.31,0.00023287,2]
[400054703,1767054646444,-500.0,0.00023287,2]
[400054704,1767054646454,-500.0,0.00023369,2]
[400054705,1767054646467,-13696.17441862,0.000234,3]
[400054706,1767054646477,-1041.66666667,0.000234,3]
[400054707,1767054646487,-151.0,0.000235,6]
[400054708,1767054646497,-620.0,0.00023509,2]
[400054709,1767054646507,-15277.58765547,0.00023557,2]
[400054710,1767054646516,-500.0,0.00023561,2]
[400054711,1767054646525,-1185.68095469,0.00023561,2]
[400054712,1767054646535,-500.0,0.00023561,2]
[400054713,1767054646544,-893.04,0.00023561,2]
[400054714,1767054646554,-500.0,0.00023561,2]
[400054715,1767054646564,-500.0,0.00023561,2]
[400054716,1767054646574,-502.9,0.00023561,2]
[400054717,1767054646584,-4821.6,0.00023561,2]
[400054718,1767054646593,-680.8,0.00023561,2]
[400054719,1767054646602,-501.1,0.00023561,2]
[400054720,1767054646612,-878.29,0.00023561,2]
[400054721,1767054646622,-500.0,0.00023561,2]
[400054722,1767054646631,-994.31,0.00023561,2]
[400054723,1767054646641,-500.0,0.00023561,2]
[400054724,1767054646651,-2000.0,0.00023636,7]
[400054725,1767054646660,-500.0,0.00023755,2]
[400054726,1767054646670,-500.0,0.00023835,2]
[400054727,1767054646679,-1185.68095469,0.00023835,2]
[400054728,1767054646688,-200.0,0.00023835,2]
[400054729,1767054646697,-200.0,0.00023835,2]
[400054730,1767054646707,-200.0,0.00023835,2]
[400054731,1767054646716,-200.0,0.00023835,2]
[400054732,1767054646726,-200.0,0.00023835,2]
[400054733,1767054646736,-200.0,0.00023835,2]
[400054734,1767054646746,-200.0,0.00023835,2]
[400054735,1767054646755,-200.0,0.00023835,2]
[400054736,1767054646765,-500.0,0.00023835,2]
[400054737,1767054646775,-893.04,0.00023835,2]
[400054738,1767054646784,-500.0,0.00023835,2]
[400054739,1767054646794,-500.0,0.00023835,2]
[400054740,1767054646804,-502.9,0.00023835,2]
[400054741,1767054646814,-4821.6,0.00023835,2]
[400054742,1767054646823,-680.8,0.00023835,2]
[400054743,1767054646832,-501.1,0.00023835,2]
[400054744,1767054646841,-878.29,0.00023835,2]
[400054745,1767054646851,-500.0,0.00023835,2]
[400054746,1767054646860,-994.31,0.00023835,2]
[400054747,1767054646870,-500.0,0.00023835,2]
[400054748,1767054646881,-1802.09,0.00024,14]
[400054749,1767054646893,-321.5,0.00024065,2]
[400054750,1767054646902,-1207.08,0.000241,7]
[400054751,1767054646912,-500.0,0.00024109,2]
[400054752,1767054646923,-1185.68095469,0.00024109,2]
[400054753,1767054646933,-200.0,0.00024109,2]
[400054754,1767054646943,-500.0,0.00024109,2]
[400054755,1767054646952,-893.04,0.00024109,2]
[400054756,1767054646963,-500.0,0.00024109,2]
[400054757,1767054646973,-500.0,0.00024109,2]
[400054758,1767054646982,-502.9,0.00024109,2]
[400054759,1767054646991,-4821.6,0.00024109,2]
[400054760,1767054647001,-680.8,0.00024109,2]
[400054761,1767054647010,-501.1,0.00024109,2]
[400054762,1767054647020,-878.29,0.00024109,2]
[400054763,1767054647030,-500.0,0.00024109,2]
[400054764,1767054647039,-994.31,0.00024109,2]
[400054765,1767054647049,-500.0,0.00024109,2]
[400054766,1767054647058,-500.0,0.00024125,2]
[400054767,1767054647069,-336693.15055839,0.00024142,2]
[400054768,1767054647079,-965.69768194,0.00024283,2]
[400054769,1767054647089,-1181.68932168,0.00024327,2]
[400054770,1767054647098,-965.69768192,0.00024344,2]
[400054771,1767054647108,-1185.68095469,0.00024383,2]
[400054772,1767054647118,-200.0,0.00024383,2]
[400054773,1767054647127,-500.0,0.00024383,2]
[400054774,1767054647137,-893.04,0.00024383,2]
[400054775,1767054647147,-500.0,0.00024383,2]
[400054776,1767054647157,-500.0,0.00024383,2]
[400054777,1767054647166,-502.9,0.00024383,2]
[400054778,1767054647176,-4821.6,0.00024383,2]
[400054779,1767054647185,-680.8,0.00024383,2]
[400054780,1767054647195,-501.1,0.00024383,2]
[400054781,1767054647205,-878.29,0.00024383,2]
[400054782,1767054647216,-500.0,0.00024383,2]
[400054783,1767054647226,-994.31,0.00024383,2]
[400054784,1767054647235,-500.0,0.00024383,2]
[400054785,1767054647244,-965.69768192,0.00024405,2]
[400054786,1767054647254,-965.69768192,0.00024466,2]
[400054787,1767054647263,-909.63292363,0.00024511,2]
[400054788,1767054647273,-965.69768192,0.00024527,2]
[400054789,1767054647283,-965.69768192,0.00024587,2]
[400054790,1767054647293,-13551.56862821,0.000246,3]
[400054791,1767054647303,-965.69768192,0.00024648,2]